fUSD/lending_fUSD_20251215
["ID","MTS","AMOUNT","RATE_DAILY","PERIOD"]
[398527153,1765789843297,-856.64478728,0.00016999,5]
[398527154,1765789843308,-200.77285261,0.00016999,2]
[398527155,1765789843318,-688.94394477,0.00016999,2]
[398527156,1765789843328,-666.0,0.00016999,2]
[398527157,1765789843338,-300.0,0.00016999,2]
[398527158,1765789843348,-752.52,0.00016999,2]
[398527159,1765789843357,-752.52,0.00016999,2]
[398527160,1765789843366,-752.52,0.00016999,2]
[398527161,1765789843376,-752.52,0.00016999,2]
[398527162,1765789843387,-752.52,0.00016999,2]
[398527163,1765789843398,-752.52,0.00016999,2]
[398527164,1765789843407,-752.52,0.00016999,2]
[398527165,1765789843416,-752.52,0.00016999,2]
[398527166,1765789843425,-752.52,0.00016999,2]
[398527167,1765789843434,-752.52,0.00016999,2]
[398527168,1765789843444,-752.52,0.00016999,2]
[398527169,1765789843453,-752.52,0.00016999,2]
[398527170,1765789843462,-752.52,0.00016999,2]
[398527171,1765789843472,-752.52,0.00016999,2]
[398527172,1765789843481,-752.52,0.00016999,2]
[398527173,1765789843491,-752.52,0.00016999,2]
[398527174,1765789843500,-752.52,0.00016999,2]
[398527175,1765789843510,-752.52,0.00016999,2]
[398527176,1765789843519,-752.52,0.00016999,2]
[398527177,1765789843529,-752.52,0.00016999,2]
[398527178,1765789843538,-752.52,0.00016999,2]
[398527179,1765789843547,-752.52,0.00016999,2]
[398527180,1765789843556,-752.52,0.00016999,2]
[398527181,1765789843565,-752.66477574,0.00016999,2]
[398527182,1765789843574,-4105.0,0.00017,2]
[398527183,1765789843584,-150.0,0.00017,2]
[398527184,1765789843593,-4976541.66494046,0.00017,2]
[398527187,1765789847067,-150.03713056,0.0001582,2]
[398527188,1765789847077,-500.0,0.0001582,2]
[398527189,1765789847086,-500.0,0.0001582,2]
[398527190,1765789847095,-464.27126587,0.0001582,2]
[398527191,1765789847105,-500.0,0.0001582,2]
[398527192,1765789847115,-500.0,0.0001582,2]
[398527193,1765789847125,-500.0,0.0001582,2]
[398527194,1765789847134,-324.86135941,0.0001582,2]
[398527195,1765789847167,-175.13864059,0.0001582,2]
[398527196,1765789847177,-500.0,0.0001582,2]
[398527197,1765789847186,-500.0,0.0001582,2]
[398527198,1765789847196,-500.0,0.0001582,2]
[398527199,1765789847205,-559.17638218,0.00016785,2]
[398527200,1765789847215,-177.7846821,0.00016785,2]
[398527201,1765789847224,-12553.49827956,0.00017,2]
[398527202,1765789847250,-500.0,0.0001582,2]
[398527203,1765789847259,-34.74828065,0.00017,2]
[398527204,1765789847877,-304.06693998,0.0001582,2]
[398527205,1765789847941,-195.93306002,0.0001582,2]
[398527206,1765789847950,-500.0,0.00016438,2]
[398527207,1765789847960,-500.0,0.00016438,2]
[398527208,1765789847969,-500.0,0.00016438,2]
[398527209,1765789847978,-201.33400475,0.00016438,2]
[398527210,1765789868220,4432.332046,7.945e-05,2]
[398527251,1765790574530,166.66,0.00015018,2]
[398527252,1765790574795,166.66,0.00015335,2]
[398527253,1765790574980,166.66,0.00015651,2]
[398527262,1765790705206,150.0,0.00015288,2]
[398527263,1765790706571,150.0,0.00015288,2]
[398527264,1765790706809,150.0,0.00015288,2]
[398527265,1765790710288,150.0,0.00015288,2]
[398527266,1765790714756,150.0,0.00015288,2]
[398527267,1765790714788,150.0,0.00015288,2]
[398527269,1765790729730,150.0,0.00015288,2]
[398527270,1765790732038,7467.85028324,0.00015,2]
[398527279,1765790755151,1482.15971676,0.000149,2]
[398527280,1765790755172,10000.01,0.000149,2]
[398527281,1765790755193,10000.01,0.000149,2]
[398527282,1765790755215,10000.01,0.000149,2]
[398527283,1765790755236,10000.01,0.000149,2]
[398527284,1765790755257,10000.01,0.000149,2]
[398527285,1765790755283,48517.89028324,0.000149,2]
[398527289,1765790796877,1000.0,0.00013699,2]
[398527293,1765790859743,898.08433789,0.00015,2]
[398527294,1765790859803,279.50214594,0.00015,2]
[398527295,1765790859838,4046.35374459,0.00015,2]
[398527296,1765790867620,1003.71015824,0.00013,2]
[398527297,1765790881386,173.05,7.847e-05,2]
[398527298,1765790881587,173.05,8.26e-05,2]
[398527299,1765790881793,173.05,8.673e-05,2]
[398527300,1765790881985,173.05,9.086e-05,2]
[398527301,1765790882469,173.05,9.499e-05,2]
[398527302,1765790885446,173.05,9.912e-05,2]
[398527303,1765790885509,173.05,0.00010325,2]
[398527304,1765790885569,173.05,0.00010738,2]
[398527305,1765790885632,173.05,0.00011151,2]
[398527306,1765790885697,173.05,0.00011564,2]
[398527307,1765790885753,173.05,0.00011977,2]
[398527308,1765790885841,173.05,0.0001239,2]
[398527310,1765790889936,1104.299631,0.00015661,2]
[398527313,1765790900648,2111.63070996,0.00015,2]
[398527314,1765790900796,173.05,0.00012803,2]
[398527315,1765790901283,173.05,0.00013216,2]
[398527316,1765790901486,173.05,0.00013629,2]
[398527317,1765790901689,173.05,0.00014042,2]
[398527318,1765790901920,173.05,0.00014455,2]
[398527319,1765790902161,173.05,0.00014868,2]
[398527320,1765790902327,173.05,0.00015281,2]
[398527321,1765790902512,173.05,0.00015694,2]
[398527324,1765790912211,2268.25300756,0.0001421,7]
[398527376,1765791033114,-244.8327,0.0001572,2]
[398527377,1765791033124,-55.1673,0.0001582,2]
[398527378,1765791033176,-194.8327,0.0001582,2]
[398527379,1765791033187,-302.64270691,0.0001582,2]
[398527380,1765791033196,-2.52459309,0.0001582,2]
[398527381,1765791033207,-148.81540691,0.0001582,2]
[398527382,1765791033218,-150.35,0.0001582,2]
[398527383,1765791033227,-151.62,0.0001582,2]
[398527384,1765791033237,-132.84707116,0.00015834,2]
[398527385,1765791033248,-67.15292884,0.00015834,2]
[398527386,1765791033257,-150.0,0.00015854,2]
[398527387,1765791033266,-1200.0,0.00015888,2]
[398527388,1765791033275,-300.0,0.00015889,2]
[398527389,1765791033284,-1273.87,0.0001589,2]
[398527390,1765791033294,-955.25,0.0001589,2]
[398527391,1765791033304,-992.69,0.0001589,2]
[398527392,1765791033313,-166.66,0.00015967,2]
[398527393,1765791033323,-300.0,0.00015968,2]
[398527394,1765791033332,-300.0,0.00015969,2]
[398527395,1765791033342,-649.43327534,0.00015969,2]
[398527396,1765791033353,-343.24244796,0.00015969,2]
[398527397,1765791033403,-1437.47812874,0.00015969,2]
[398527398,1765791033413,-578.20924308,0.00015969,2]
[398527399,1765791033422,-1124.89324178,0.00015969,2]
[398527400,1765791033434,-377.10675822,0.00015969,2]
[398527401,1765791033443,-253.64663752,0.00015969,2]
[398527402,1765791033454,-8746.35336248,0.00015969,2]
[398527403,1765791033464,-693.3919763,0.00015969,2]
[398527404,1765791033473,-592.7184097,0.00015969,2]
[398527405,1765791033483,-200.0,0.00015969,2]
[398527406,1765791033492,-207.4,0.00015969,2]
[398527407,1765791033501,-215.0738,0.00015969,2]
[398527408,1765791033514,-223.0315306,0.00015969,2]
[398527409,1765791033531,-231.28369723,0.00015969,2]
[398527410,1765791033540,-239.84119403,0.00015969,2]
[398527411,1765791033549,-248.71531821,0.00015969,2]
[398527412,1765791033558,-180.26151853,0.00015969,2]
[398527413,1765791033567,-152.35,0.00016016,2]
[398527414,1765791033578,-152.12,0.00016016,2]
[398527415,1765791033587,-1500.0,0.00016016,2]
[398527416,1765791033596,-150.0,0.00016137,2]
[398527417,1765791033604,-150.0,0.00016168,2]
[398527418,1765791033613,-150.0,0.00016168,2]
[398527419,1765791033622,-500.0,0.00016168,2]
[398527420,1765791033630,-150.0,0.00016168,2]
[398527421,1765791033639,-500.0,0.00016168,2]
[398527422,1765791033648,-150.0,0.00016168,2]
[398527423,1765791033657,-168.0,0.00016271,2]
[398527424,1765791033665,-212.65,0.00016272,2]
[398527425,1765791033674,-166.67,0.00016275,2]
[398527426,1765791033683,-201.0,0.00016278,2]
[398527427,1765791033691,-166.66,0.00016283,2]
[398527428,1765791033700,-500.0,0.00016305,2]
[398527429,1765791033709,-150.0,0.00016305,2]
[398527430,1765791033717,-254.21306055,0.00016305,2]
[398527431,1765791033726,-500.0,0.00016305,2]
[398527432,1765791033735,-500.0,0.00016305,2]
[398527433,1765791033743,-150.0,0.00016305,2]
[398527434,1765791033752,-1224.0,0.00016305,2]
[398527435,1765791033761,-569.0,0.00016305,2]
[398527436,1765791033769,-150.0,0.00016305,2]
[398527437,1765791033778,-168.0,0.00016306,2]
[398527438,1765791033787,-164.17,0.00016348,2]
[398527439,1765791033796,-150.0,0.0001642,2]
[398527440,1765791033805,-500.0,0.00016432,2]
[398527441,1765791033815,-150.88226754,0.00016432,2]
[398527442,1765791033824,-152.89564994,0.00016432,2]
[398527443,1765791033833,-500.0,0.00016432,2]
[398527444,1765791033842,-574.12855637,0.00016432,2]
[398527445,1765791033851,-500.0,0.00016432,2]
[398527446,1765791033860,-500.0,0.00016432,2]
[398527447,1765791033869,-500.0,0.00016432,2]
[398527448,1765791033879,-301.63702078,0.00016432,2]
[398527449,1765791033888,-151.0,0.00016432,2]
[398527450,1765791033897,-187.77194097,0.00016432,2]
[398527451,1765791033906,-151.0,0.00016432,2]
[398527452,1765791033916,-151.0,0.00016432,2]
[398527453,1765791033925,-151.0,0.00016432,2]
[398527454,1765791033935,-620.0,0.00016432,2]
[398527455,1765791033944,-151.0,0.00016432,2]
[398527456,1765791033962,-500.0,0.00016438,2]
[398527457,1765791033972,-150.0,0.00016442,2]
[398527458,1765791033982,-500.0,0.00016442,2]
[398527459,1765791033991,-150.0,0.00016442,2]
[398527460,1765791034000,-150.0,0.00016442,2]
[398527461,1765791034010,-1224.0,0.00016442,2]
[398527462,1765791034019,-569.0,0.00016442,2]
[398527463,1765791034028,-218.95227974,0.00016442,2]
[398527464,1765791034037,-151.37295936,0.00016442,2]
[398527465,1765791034046,-500.0,0.00016442,2]
[398527466,1765791034055,-500.0,0.00016442,2]
[398527467,1765791034066,-150.0,0.00016442,2]
[398527468,1765791034075,-150.0,0.00016442,2]
[398527469,1765791034084,-150.0,0.00016442,2]
[398527470,1765791034093,-150.0,0.00016442,2]
[398527471,1765791034102,-150.0,0.00016442,2]
[398527472,1765791034111,-185.0,0.00016507,2]
[398527473,1765791034120,-1502.0,0.00016517,2]
[398527474,1765791034129,-796.20617884,0.00016517,2]
[398527475,1765791034139,-185.0,0.00016528,2]
[398527476,1765791034149,-500.0,0.00016569,2]
[398527477,1765791034159,-500.0,0.00016569,2]
[398527478,1765791034168,-500.0,0.00016575,2]
[398527479,1765791034178,-150.0,0.00016579,2]
[398527480,1765791034187,-500.0,0.00016579,2]
[398527481,1765791034197,-150.0,0.00016579,2]
[398527482,1765791034206,-1224.0,0.00016579,2]
[398527483,1765791034215,-569.0,0.00016579,2]
[398527484,1765791034225,-500.0,0.00016579,2]
[398527485,1765791034235,-500.0,0.00016579,2]
[398527486,1765791034244,-150.69967865,0.00016579,2]
[398527487,1765791034254,-150.0,0.00016579,2]
[398527488,1765791034263,-155.42907447,0.00016579,2]
[398527489,1765791034273,-166.66,0.00016599,2]
[398527490,1765791034282,-543.7,0.00016627,2]
[398527491,1765791034291,-2318.3846804,0.0001666,2]
[398527492,1765791034300,-6906.89045153,0.00016662,2]
[398527493,1765791034311,-18534.378772,0.00016664,2]
[398527494,1765791034368,-688.72,0.00016664,2]
[398527495,1765791037942,-500.0,0.00016168,2]
[398527496,1765791037953,-27280.632628,0.00016664,2]
[398527498,1765791037963,-150.0,0.00016699,2]
[398527500,1765791037973,-1427.54,0.00016699,2]
[398527502,1765791037983,-500.0,0.00016706,2]
[398527504,1765791037992,-500.0,0.00016712,2]
[398527506,1765791038003,-500.0,0.00016715,2]
[398527508,1765791038012,-500.0,0.00016715,2]
[398527509,1765791038022,-436.8153272,0.00016715,2]
[398527511,1765791038031,-500.0,0.00016715,2]
[398527512,1765791038041,-500.0,0.00016715,2]
[398527513,1765791038051,-500.0,0.00016715,2]
[398527514,1765791038061,-500.0,0.00016715,2]
[398527515,1765791038072,-500.0,0.00016715,2]
[398527516,1765791038085,-500.0,0.00016715,2]
[398527517,1765791038096,-500.0,0.00016715,2]
[398527518,1765791038106,-500.0,0.00016715,2]
[398527519,1765791038116,-500.0,0.00016715,2]
[398527520,1765791038131,-500.0,0.00016715,2]
[398527521,1765791038141,-500.0,0.00016715,2]
[398527522,1765791038151,-500.0,0.00016715,2]
[398527523,1765791038162,-500.0,0.00016715,2]
[398527524,1765791038172,-500.0,0.00016715,2]
[398527525,1765791038183,-500.0,0.00016715,2]
[398527526,1765791038193,-500.0,0.00016715,2]
[398527527,1765791038204,-500.0,0.00016715,2]
[398527528,1765791038214,-500.0,0.00016715,2]
[398527529,1765791038224,-500.0,0.00016715,2]
[398527530,1765791038234,-500.0,0.00016715,2]
[398527531,1765791038244,-500.0,0.00016715,2]
[398527532,1765791038254,-500.0,0.00016715,2]
[398527533,1765791038264,-554.61553654,0.00016715,2]
[398527534,1765791038274,-500.0,0.00016715,2]
[398527535,1765791038284,-500.0,0.00016715,2]
[398527536,1765791038294,-500.0,0.00016715,2]
[398527537,1765791038305,-500.0,0.00016715,2]
[398527538,1765791038315,-500.0,0.00016715,2]
[398527539,1765791038325,-500.0,0.00016715,2]
[398527540,1765791038335,-500.0,0.00016715,2]
[398527541,1765791038345,-500.0,0.00016715,2]
[398527542,1765791038355,-500.0,0.00016715,2]
[398527543,1765791038365,-500.0,0.00016715,2]
[398527544,1765791038375,-500.0,0.00016715,2]
[398527545,1765791038384,-500.0,0.00016715,2]
[398527546,1765791038394,-500.0,0.00016715,2]
[398527547,1765791038405,-500.0,0.00016715,2]
[398527548,1765791038414,-500.0,0.00016715,2]
[398527549,1765791038424,-500.0,0.00016715,2]
[398527550,1765791038434,-500.0,0.00016715,2]
[398527551,1765791038443,-299.99999999,0.00016715,2]
[398527552,1765791038454,-150.0,0.00016716,2]
[398527553,1765791038463,-315.45063143,0.00016716,2]
[398527554,1765791038473,-206.91068107,0.00016716,2]
[398527555,1765791038486,-1224.0,0.00016716,2]
[398527556,1765791038496,-569.0,0.00016716,2]
[398527557,1765791038506,-500.0,0.00016716,2]
[398527558,1765791038515,-254.44455269,0.00016716,2]
[398527559,1765791038525,-160.97425744,0.00016716,2]
[398527560,1765791038540,-150.0,0.00016726,2]
[398527561,1765791038550,-1000.0,0.00016727,2]
[398527562,1765791038560,-150.0,0.00016729,2]
[398527563,1765791038570,-300.0,0.00016733,2]
[398527564,1765791038580,-150.0,0.00016734,2]
[398527565,1765791038590,-1000.0,0.00016734,2]
[398527566,1765791038601,-1000.0,0.00016736,2]
[398527567,1765791038611,-1000.0,0.00016737,2]
[398527568,1765791038622,-150.0,0.00016741,2]
[398527569,1765791038632,-1000.0,0.00016744,2]
[398527570,1765791038644,-1000.0,0.00016747,2]
[398527571,1765791038654,-1000.0,0.00016751,2]
[398527572,1765791038663,-1000.0,0.00016754,2]
[398527573,1765791038673,-837.0,0.00016755,2]
[398527574,1765791038687,-1000.0,0.00016758,2]
[398527575,1765791038697,-837.0,0.00016763,2]
[398527576,1765791038708,-150.0,0.00016765,2]
[398527577,1765791038717,-300.0,0.00016771,2]
[398527578,1765791038727,-1000.0,0.00016774,2]
[398527579,1765791038736,-1000.0,0.00016782,2]
[398527580,1765791038746,-1000.0,0.00016786,2]
[398527581,1765791038755,-300.0,0.00016787,2]
[398527582,1765791038765,-1000.0,0.00016788,2]
[398527583,1765791038775,-150.0,0.0001679,2]
[398527584,1765791038785,-150.0,0.00016791,2]
[398527585,1765791038795,-1000.0,0.00016792,2]
[398527586,1765791038805,-4392.22611152,0.00016792,2]
[398527587,1765791038816,-185.0,0.00016794,2]
[398527588,1765791038828,-1000.0,0.00016796,2]
[398527589,1765791038838,-1000.0,0.00016799,2]
[398527590,1765791038847,-151.18156087,0.00016802,2]
[398527591,1765791038857,-150.0,0.00016803,2]
[398527592,1765791038866,-4392.2261115,0.00016804,2]
[398527593,1765791038876,-600.0,0.00016804,2]
[398527594,1765791038886,-150.0,0.00016808,2]
[398527595,1765791038896,-1000.0,0.00016809,2]
[398527596,1765791038907,-150.0,0.00016809,2]
[398527597,1765791038916,-150.0,0.00016809,2]
[398527598,1765791038926,-1000.0,0.00016811,2]
[398527599,1765791038936,-1000.0,0.00016816,2]
[398527600,1765791038946,-4392.2261115,0.00016816,2]
[398527601,1765791038957,-150.0,0.00016818,2]
[398527602,1765791038967,-150.0,0.00016818,2]
[398527603,1765791038978,-300.0,0.00016821,2]
[398527604,1765791038988,-1000.0,0.00016823,2]
[398527605,1765791038998,-1000.0,0.00016823,2]
[398527606,1765791039009,-300.0,0.00016825,2]
[398527607,1765791039018,-391.42346753,0.00016827,2]
[398527608,1765791039028,-1000.0,0.00016828,2]
[398527609,1765791039038,-4392.2261115,0.00016828,2]
[398527610,1765791039048,-12734.00084286,0.0001683,2]
[398527611,1765791039058,-4804.49929,0.0001683,2]
[398527612,1765791039078,-837.0,0.00016832,2]
[398527613,1765791039089,-1000.0,0.00016834,2]
[398527614,1765791039099,-300.0,0.00016834,2]
[398527615,1765791039110,-150.0,0.00016835,2]
[398527616,1765791039120,-150.0,0.00016836,2]
[398527617,1765791039130,-150.0,0.00016836,2]
[398527618,1765791039140,-1000.0,0.00016836,2]
[398527619,1765791039151,-1000.0,0.00016838,2]
[398527620,1765791039162,-4392.2261115,0.0001684,2]
[398527621,1765791039173,-500.0,0.00016843,2]
[398527622,1765791039184,-1000.0,0.00016848,2]
[398527623,1765791039195,-1000.0,0.00016848,2]
[398527624,1765791039205,-200.0,0.00016849,2]
[398527625,1765791039216,-1000.0,0.00016851,2]
[398527626,1765791039228,-4392.2261115,0.00016852,2]
[398527627,1765791039238,-250.0,0.00016853,2]
[398527628,1765791039247,-1224.0,0.00016853,2]
[398527629,1765791039257,-569.0,0.00016853,2]
[398527630,1765791039267,-326.53505463,0.00016853,2]
[398527631,1765791039277,-150.0,0.00016857,2]
[398527632,1765791039287,-1000.0,0.00016858,2]
[398527633,1765791039297,-1000.0,0.00016859,2]
[398527634,1765791039306,-300.0,0.0001686,2]
[398527635,1765791039316,-1000.0,0.00016863,2]
[398527636,1765791039325,-4392.2261115,0.00016864,2]
[398527637,1765791039335,-150.0,0.00016866,2]
[398527638,1765791039346,-1000.0,0.00016871,2]
[398527639,1765791039355,-1000.0,0.00016871,2]
[398527640,1765791039365,-150.0,0.00016873,2]
[398527641,1765791039375,-150.0,0.00016873,2]
[398527642,1765791039384,-1000.0,0.00016874,2]
[398527643,1765791039394,-150.0,0.00016874,2]
[398527644,1765791039404,-4392.2261115,0.00016876,2]
[398527645,1765791039413,-1000.0,0.00016877,2]
[398527646,1765791039423,-1000.0,0.00016877,2]
[398527647,1765791039433,-1000.0,0.00016878,2]
[398527648,1765791039443,-151.48227111,0.0001688,2]
[398527649,1765791039452,-1000.0,0.00016882,2]
[398527650,1765791039461,-1000.0,0.00016884,2]
[398527651,1765791039471,-1000.0,0.00016886,2]
[398527652,1765791039481,-1550.807,0.00016888,2]
[398527653,1765791039490,-178.50581784,0.00016888,2]
[398527654,1765791039500,-4392.2261115,0.00016888,2]
[398527655,1765791039510,-1000.0,0.00016889,2]
[398527658,1765791040322,-1000.0,0.00016891,2]
[398527659,1765791040332,-300.0,0.00016891,2]
[398527660,1765791040342,-1000.0,0.00016892,2]
[398527661,1765791040351,-1000.0,0.00016893,2]
[398527662,1765791040361,-2761.05871278,0.00016896,2]
[398527663,1765791040370,-837.0,0.00016896,2]
[398527664,1765791040380,-150.0,0.00016897,2]
[398527665,1765791040389,-2761.05871278,0.00016897,2]
[398527666,1765791040399,-327.12443448,0.00016898,2]
[398527667,1765791040408,-327.12443445,0.00016898,2]
[398527668,1765791040419,-2761.05871278,0.00016899,2]
[398527669,1765791040429,-327.12443445,0.00016899,2]
[398527670,1765791040439,-327.12443445,0.00016899,2]
[398527671,1765791040450,-327.12443445,0.00016899,2]
[398527672,1765791040462,-327.12443445,0.000169,2]
[398527673,1765791040472,-3591.8577,0.000169,2]
[398527674,1765791040482,-6766.0798,0.000169,2]
[398527675,1765791040493,-10000.0,0.000169,2]
[398527676,1765791040503,-150.0,0.000169,2]
[398527677,1765791040514,-2761.05871278,0.000169,2]
[398527678,1765791040525,-4392.2261115,0.000169,2]
[398527679,1765791040541,-1000.0,0.000169,2]
[398527680,1765791040554,-5125.0,0.000169,2]
[398527681,1765791040566,-543.7,0.00016901,2]
[398527682,1765791040577,-1000.0,0.00016904,2]
[398527683,1765791040586,-150.0,0.00016905,2]
[398527684,1765791040598,-1000.0,0.00016906,2]
[398527685,1765791040609,-150.0,0.00016916,2]
[398527686,1765791040620,-300.0,0.00016917,2]
[398527687,1765791040630,-150.0,0.00016919,2]
[398527688,1765791040639,-481.25235646,0.0001692,2]
[398527689,1765791040652,-1000.0,0.00016921,2]
[398527690,1765791040662,-150.99,0.00016922,2]
[398527691,1765791040671,-1204.98,0.00016922,2]
[398527692,1765791040681,-9999.99,0.00016922,2]
[398527693,1765791040691,-273.3,0.00016922,2]
[398527694,1765791040700,-3779.05,0.00016922,2]
[398527695,1765791040709,-1000.0,0.00016923,2]
[398527696,1765791040718,-1000.0,0.00016928,2]
[398527697,1765791040728,-1000.0,0.00016931,2]
[398527698,1765791040737,-1000.0,0.00016934,2]
[398527699,1765791040747,-150.0,0.00016938,2]
[398527700,1765791040758,-1000.0,0.00016939,2]
[398527701,1765791040768,-1000.0,0.00016939,2]
[398527702,1765791040777,-1000.0,0.00016945,2]
[398527703,1765791040788,-150.0,0.00016947,2]
[398527704,1765791040800,-372.3264658,0.00016951,2]
[398527705,1765791040810,-150.0,0.00016952,2]
[398527706,1765791040820,-1000.0,0.00016952,2]
[398527707,1765791040830,-1000.0,0.00016958,2]
[398527708,1765791040840,-949.11,0.00016958,2]
[398527709,1765791040850,-2135.0,0.00016959,2]
[398527710,1765791040860,-1000.0,0.00016963,2]
[398527711,1765791040869,-837.0,0.00016964,2]
[398527712,1765791040878,-1000.0,0.00016965,2]
[398527713,1765791040887,-1000.0,0.00016966,2]
[398527714,1765791040897,-150.0,0.00016967,2]
[398527715,1765791040907,-1000.0,0.00016971,2]
[398527716,1765791040917,-500.0,0.00016973,2]
[398527717,1765791040927,-169.17840548,0.00016973,2]
[398527718,1765791040937,-534.13325228,0.00016973,2]
[398527719,1765791040947,-500.0,0.00016973,2]
[398527720,1765791040956,-500.0,0.00016973,2]
[398527721,1765791040966,-500.0,0.00016973,2]
[398527722,1765791040976,-500.0,0.00016973,2]
[398527723,1765791040986,-500.0,0.00016973,2]
[398527724,1765791040995,-167.01915454,0.00016973,2]
[398527725,1765791041005,-500.0,0.00016973,2]
[398527726,1765791041016,-500.0,0.00016973,2]
[398527727,1765791041026,-223.90146234,0.00016973,2]
[398527728,1765791041036,-500.38142603,0.00016973,2]
[398527729,1765791041045,-500.0,0.00016973,2]
[398527730,1765791041055,-500.0,0.00016973,2]
[398527731,1765791041064,-500.0,0.00016973,2]
[398527732,1765791041074,-250.59182654,0.00016973,2]
[398527733,1765791041083,-500.0,0.00016973,2]
[398527734,1765791041093,-500.0,0.00016973,2]
[398527735,1765791041103,-500.0,0.00016973,2]
[398527736,1765791041113,-626.45389736,0.00016973,2]
[398527737,1765791041123,-500.0,0.00016973,2]
[398527738,1765791041133,-500.0,0.00016973,2]
[398527739,1765791041143,-500.0,0.00016973,2]
[398527740,1765791041153,-315.21795353,0.00016973,2]
[398527741,1765791041162,-500.0,0.00016973,2]
[398527742,1765791041171,-500.0,0.00016973,2]
[398527743,1765791041182,-515.49595078,0.00016973,2]
[398527744,1765791041192,-500.0,0.00016973,2]
[398527745,1765791041202,-500.0,0.00016973,2]
[398527746,1765791041211,-500.0,0.00016973,2]
[398527747,1765791041222,-500.0,0.00016973,2]
[398527748,1765791041232,-500.0,0.00016973,2]
[398527749,1765791041242,-535.77849194,0.00016973,2]
[398527750,1765791041251,-500.0,0.00016973,2]
[398527751,1765791041262,-500.0,0.00016973,2]
[398527752,1765791041272,-500.0,0.00016973,2]
[398527753,1765791041282,-500.0,0.00016973,2]
[398527754,1765791041292,-150.0,0.00016973,2]
[398527755,1765791041302,-1427.54,0.00016973,2]
[398527756,1765791041312,-500.0,0.00016973,2]
[398527757,1765791041323,-150.0,0.00016973,2]
[398527758,1765791041334,-1000.0,0.00016974,2]
[398527759,1765791041343,-151.0,0.00016974,2]
[398527760,1765791041353,-1000.0,0.00016975,2]
[398527761,1765791041363,-1000.0,0.00016977,2]
[398527762,1765791041374,-500.0,0.0001698,2]
[398527763,1765791041383,-595.37131296,0.0001698,2]
[398527764,1765791041393,-1000.0,0.00016982,2]
[398527765,1765791041405,-1000.0,0.00016982,2]
[398527766,1765791041415,-1500.0,0.00016983,2]
[398527767,1765791041425,-1500.0,0.00016983,2]
[398527768,1765791041434,-1500.0,0.00016983,2]
[398527769,1765791041446,-1500.0,0.00016983,2]
[398527770,1765791041455,-1500.0,0.00016983,2]
[398527771,1765791041464,-1500.0,0.00016983,2]
[398527772,1765791041475,-1500.0,0.00016983,5]
[398527773,1765791041485,-151.0,0.00016983,2]
[398527774,1765791041497,-527.57313586,0.00016983,2]
[398527775,1765791041507,-152.37400623,0.00016983,2]
[398527776,1765791041517,-1000.0,0.00016984,2]
[398527777,1765791041527,-1000.0,0.00016985,2]
[398527778,1765791041541,-150.0,0.00016986,2]
[398527779,1765791041551,-949.11,0.00016986,2]
[398527780,1765791041561,-320950.19,0.00016986,2]
[398527781,1765791041570,-150.0,0.00016986,2]
[398527782,1765791041581,-150.0,0.00016986,2]